Workbook

Sheet Addresses (hidden)
A1: Atomic Speedway | B1: 2535 Blain Hwy Waverly, OH 45690
A2: Attica Raceway Park | B2: 100 Fairgrounds Rd Attica, OH 44807
A3: Bedford Speedway | B3: 108 Short St Bedford, PA 15522
A4: Brownstown Speedway | B4: 476 E County Rd 100 S Brownstown, IN 4722
A5: Bubba Raceway Park | B5: 9050 NW Gainesville Rd Ocala, FL 34482
A6: Butler Speedway | B6: 1031 Clarendon Rd Quincy, MI 49082
A7: Eldora Speedway | B7: 13929 OH-118 New Weston, OH 45348
A8: Eriez Speedway | B8: 9821 Sampson Rd Erie, PA 16504
A9: Fremont Speedway | B9: 901 Rawson Ave Fremont, OH 43420
A10: Grandview Speedway | B10: 3430 Routes 417 Franklin, PA 16323
A11: Hartford Speedway | B11: 301 Bowie St Hartford, MI 49057
A12: I-96 Speedway | B12: 3823 Portland Rd Lake Odessa, MI 48849
A13: Kokomo Speedway | B13: 2455 N Davis Rd Kokomo, IN 46901
A14: Lernerville Speedway | B14: 313 N Pike Rd Sarver, PA 16055
A15: Limaland Speedway | B15: 1500 Dutchollow Rd. Lima, OH 45807
A16: Lincoln (IL) Speedway | B16: 1408 Short 11th St Lincoln, IL 62656
A17: Lincoln Speedway | B17: 800 Racetrack Rd Abbottstown, PA 17301
A18: Mercer Raceway Park | B18: 555 Fairground Rd Mercer, PA 16137
A19: Millstream Speedway | B19: 7805 Township Rd 95 Findlay, OH 45840
A20: Pittsburgh’s PA Speedway | B20: 180 Kelso Rd McDonald, PA 15057
A21: Port Royal Speedway | B21: 302 6th St Port Royal, PA 17082
A22: Selinsgrove Speedway | B22: 330 PA-35 Selinsgrove, PA 17870
A23: Sharon Speedway | B23: 3241 Custer Orangeville Rd, Hartford, OH 44424
A24: Tri-City Raceway Park | B24: 3430 PA-417 Franklin, PA 16323
A25: Volusia Speedway | B25: 1500 FL-40 De Leon Springs, FL 32130
A26: Wayne County Speedway | B26: 1083 N Carr Rd Orrville, OH 44667
A27: Waynesfield Raceway Park | B27: 15928 Blank Pike Waynesfield, OH 45896
A28: Williams Grove Speedway | B28: 1 Speedway Dr Mechanicsburg, PA 17055
A29: Wilmot Raceway | B29: 30820 111th St Wilmot, WI 53192

Sheet All-Star
A1: Date | B1: Location | C1: Track | D1: Distance | E1: Travel Time | F1: Miles | G1: Trip Total | I1: Home Zip
B2: Home | I2: 43215
A3: 2020-02-05 | B3: 1500 FL-40 De Leon Springs, FL 32130 | C3: Volusia Speedway Park | D3: 896.6 | E3: 13:30:00
A4: 2020-02-06 | B4: 1500 FL-40 De Leon Springs, FL 32130 | C4: Volusia Speedway Park | D4: - | E4: - | I4: Cost Per Mile
A5: 2020-02-10 | B5: 6311 Burts Rd, Tampa, FL 33619 | C5: East Bay Raceway Park | D5: 141.4 | E5: 02:26:00 | I5: 1.1
A6: 2020-02-11 | B6: 6311 Burts Rd, Tampa, FL 33619 | C6: East Bay Raceway Park | D6: - | E6: - | K6: NO FLORIDA
B7: Home | D7: 1030.2 | E7: 14:55:00 | F7: =SUM(D3:D7) -> 2068.2 | G7: =SUM(E3:E7) -> 1.285416667 | I7: Season Miles | K7: Season Miles
I8: =SUM(F:F) -> 15879.1 | K8: =I8-F7 -> 13810.9
B9: Home
A10: 2020-04-10 | B10: 100 Fairgrounds Rd Attica, OH 44807 | C10: Attica Raceway Park | D10: 85.1 | E10: 01:40:00 | I10: Season Hours | K10: Season Hours
A11: 2020-04-11 | B11: 100 Fairgrounds Rd Attica, OH 44807 | C11: Attica Raceway Park | D11: - | E11: - | I11: =SUM(G:G) -> 10.625 | K11: =I11-G7 -> 9.339583333
B12: Home | D12: 80.9 | E12: 01:44:00 | F12: =SUM(D10:D12) -> 166 | G12: =SUM(E10:E12) -> 0.1416666667
I13: Season Travel Cost | K13: Season Travel Cost
B14: Home | I14: =I5*I8 -> 17467.01 | K14: =K8*I5 -> 15191.99
A15: 2020-04-16 | B15: 4426 Tidewater Trail, Jamaica, VA 23079 | C15: Virginia Motor Speedway | D15: 515.1 | E15: 08:19:00
A16: 2020-04-17 | B16: 1 Speedway Dr Mechanicsburg, PA 17055 | C16: Williams Grove Speedway | D16: 224.5 | E16: 03:49:00
A17: 2020-04-18 | B17: 302 6th St Port Royal, PA 17082 | C17: Port Royal Speedway | D17: 43.6 | E17: 01:08:00
A18: 2020-04-19 | B18: 108 Short St Bedford, PA 15522 | C18: Bedford Speedway | D18: 87.5 | E18: 01:36:00
B19: Home | D19: 272.2 | E19: 04:18:00 | F19: =SUM(D15:D19) -> 1142.9 | G19: =SUM(E15:E19) -> 0.7986111111
B21: Home
A22: 2020-04-25 | B22: 1083 N Carr Rd Orrville, OH 44667 | C22: Wayne County Speedway | D22: 106.6 | E22: 01:39:00
B23: Home | D23: 107.2 | E23: 01:40:00 | F23: =SUM(D22:D23) -> 213.8 | G23: =SUM(E22:E23) -> 0.1381944444
B25: Home
A26: 2020-05-01 | B26: 313 N Pike Rd Sarver, PA 16055 | C26: Lernerville Speedway | D26: 216.6 | E26: 03:27:00
A27: 2020-05-02 | B27: 3241 Custer Orangeville Rd, Hartford, OH 44424 | C27: Sharon Speedway | D27: 70.3 | E27: 01:28:00
B28: Home | D28: 189.2 | E28: 02:58:00 | F28: =SUM(D26:D28) -> 476.1 | G28: =SUM(E26:E28) -> 0.3284722222
B30: Home
A31: 2020-05-15 | B31: 3823 Portland Rd Lake Odessa, MI 48849 | C31: I-96 Speedway | D31: 291.5 | E31: 04:30:00
A32: 2020-05-16 | B32: 5871 E 500 S, Gas City, IN 46933 | C32: Gas City Speedway | D32: 190.5 | E32: 03:01:00
A33: 2020-05-17 | B33: 2455 N Davis Rd, Kokomo, IN 46901 | C33: Kokomo Speedway | D33: 32.8 | E33: 00:46:00
B34: Home | D34: 223.5 | E34: 03:28:00 | F34: =SUM(D31:D34) -> 738.3 | G34: =SUM(E31:E34) -> 0.4895833333
B36: Home
A37: 2020-05-23 | B37: 302 6th St Port Royal, PA 17082 | C37: Port Royal Speedway | D37: 355 | E37: 05:39:00
A38: 2020-05-24 | B38: 302 6th St Port Royal, PA 17082 | C38: Port Royal Speedway | D38: - | E38: -
B39: Home | D39: 355.3 | E39: 05:42:00 | F39: =SUM(D37:D39) -> 710.3 | G39: =SUM(E37:E39) -> 0.4729166667
B41: Home
A42: 2020-05-29 | B42: 30820 111th St Wilmot, WI 53192 | C42: Wilmot Speedway | D42: 424.5 | E42: 06:31:00
A43: 2020-05-30 | B43: 229 Fairview Dr, Plymouth, WI 53073 | C43: Plymouth Dirt Track | D43: 99.9 | E43: 01:45:00
A44: 2020-05-31 | B44: 315 Park St, Sun Prairie, WI 53590 | C44: Angell Park Speedway | D44: 88.2 | E44: 01:33:00
B45: Home | D45: 506.3 | E45: 07:44:00 | F45: =SUM(D41:D45) -> 1118.9 | G45: =SUM(E41:E45) -> 0.73125
B47: Home
A48: 2020-06-05 | B48: 82 Main St, Dundee, NY 14837 | C48: Outlaw Speedway | D48: 432.3 | E48: 06:29:00
A49: 2020-06-06 | B49: 4150 Kortwright Rd, Jamestown, NY 14701 | C49: Stateline Speedway | D49: 162.4 | E49: 02:39:00
A50: 2019-06-07 | B50: 1 Speedway Dr #415, Weedsport, NY 13166 | C50: Weedsport Speedway | D50: 200.8 | E50: 03:21:00
B51: Home | D51: 449.2 | E51: 06:41:00 | F51: =SUM(D48:D51) -> 1244.7 | G51: =SUM(E48:E51) -> 0.7986111111
B53: Home
A54: 2020-06-12 | B54: 100 Fairgrounds Rd Attica, OH 44807 | C54: Attica Raceway Park | D54: 85.1 | E54: 01:40:00
A55: 2020-06-13 | B55: 13929 OH-118 New Weston, OH 45348 | C55: Eldora Speedway | D55: 132.9 | E55: 02:18:00
A56: 2020-06-14 | B56: 15928 Blank Pike, Waynesfield, OH 45896 | C56: Waynesfield Raceway Park | D56: 52.2 | E56: 00:58:00
A57: 2020-06-15 | B57: 1083 N Carr Rd Orrville, OH 44667 | C57: Wayne County Speedway | D57: 130.5 | E57: 02:17:00
A58: 2020-06-16 | B58: 3241 Custer Orangeville Rd, Hartford, OH 44424 | C58: Sharon Speedway | D58: 91.5 | E58: 01:40:00
A59: 2020-06-17 | B59: 7985 Frazeysburg Rd, Dresden, OH 43821 | C59: Muskingum County Speedway | D59: 163 | E59: 02:42:00
A60: 2020-06-18 | B60: 901 Rawson Ave, Fremont, OH 43420 | C60: Fremont Speedway | D60: 132.6 | E60: 02:44:00
A61: 2020-06-19 | B61: 1500 Dutchollow Rd. Lima, OH 45807 | C61: Limaland Motorsports Park | D61: 88 | E61: 01:39:00
A62: 2020-06-20 | B62: 25648 OH-73, West Portsmouth, OH 45663 | C62: Portsmouth Raceway Park | D62: 201 | E62: 03:19:00
B63: Home | D63: 92.3 | E63: 01:45:00 | F63: =SUM(D54:D63) -> 1169.1 | G63: =SUM(E54:E63) -> 0.8763888889
B65: Home
A66: 2020-07-03 | B66: 100 Fairgrounds Rd Attica, OH 44807 | C66: Attica Raceway Park | D66: 85.1 | E66: 01:40:00
A67: 2020-07-04 | B67: 901 Rawson Ave, Fremont, OH 43420 | C67: Fremont Speedway | D67: 32.4 | E67: 00:43:00
B68: Home | D68: 107.3 | E68: 02:10:00 | F68: =SUM(D66:D68) -> 224.8 | G68: =SUM(E66:E68) -> 0.1895833333
B70: Home
A71: 2020-07-11 | B71: 3241 Custer Orangeville Rd, Hartford, OH 44424 | C71: Sharon Speedway | D71: 187.9 | E71: 02:55:00
B72: Home | D72: 189.2 | E72: 02:58:00 | F72: =SUM(D70:D72) -> 377.1 | G72: =SUM(E70:E72) -> 0.2451388889
B74: Home
A75: 2020-07-24 | B75: 110 S. Westgate Jacksonville, Il 62650 | C75: Jacksonville Speedway | D75: 418 | E75: 06:24:00
A76: 2020-07-25 | B76: 5100 Nameoki Rd, Granite City, IL 62040 | C76: Tri-City Speedway | D76: 83.1 | E76: 01:30:00
B77: Home | D77: 407.7 | E77: 06:05:00 | F77: =SUM(D75:D77) -> 908.8 | G77: =SUM(E75:E77) -> 0.5826388889
B79: Home
A80: 2020-07-31 | B80: 76748 550th Ave. Jackson, MN 56143 | C80: Jackson Motorplex | D80: 839.1 | E80: 12:32:00 | Q80: 17870 | R80: Selinsgrove (PA)
A81: 2020-08-01 | B81: 1000 N Lincoln St, Knoxville, IA 50138 | C81: Knoxville Raceway | D81: 244.3 | E81: 04:04:00 | Q81: 19505 | R81: Grandview (PA)
A82: 2020-08-02 | B82: 10463 S Prairie Grove Rd, West Burlington, IA 52655 | C82: 34 Raceway | D82: 123.6 | E82: 01:59:00 | Q82: 23079 | R82: Virginia Motor Speedway
B83: Home | D83: 492.4 | E83: 07:34:00 | F83: =SUM(D80:D83) -> 1699.4 | G83: =SUM(E80:E83) -> 1.089583333 | Q83: 43821 | R83: Muskingum Co.
B85: Home
A86: 2020-08-21 | B86: 3823 Portland Rd Lake Odessa, MI 48849 | C86: I-96 Speedway | D86: 291.5 | E86: 04:30:00
A87: 2020-08-22 | B87: 11501 12th Rd, Plymouth, IN 46563 | C87: Plymouth Speedway | D87: 168.8 | E87: 02:32:00
B88: Home | D88: 229.2 | E88: 03:54:00 | F88: =SUM(D86:D88) -> 689.5 | G88: =SUM(E86:E88) -> 0.4555555556
B90: Home
A91: 2020-08-27 | B91: 43 Passmore Road Bechtelsville, PA 19505 | C91: Grandview Speedway | D91: 447.3 | E91: 07:01:00
A92: 2020-08-28 | B92: 1 Speedway Dr Mechanicsburg, PA 17055 | C92: Williams Grove Speedway | D92: 92.5 | E92: 01:41:00
A93: 2020-08-29 | B93: 800 Racetrack Rd Abbottstown, PA 17301 | C93: Lincoln Speedway | D93: 22.5 | E93: 00:35:00
A94: 2020-08-30 | B94: 108 Short St Bedford, PA 15522 | C94: Bedford Speedway | D94: 122.1 | E94: 02:03:00
B95: Home | D95: 272.2 | E95: 04:18:00 | F95: =SUM(D91:D95) -> 956.6 | G95: =SUM(E91:E95) -> 0.6513888889
B97: Home
A98: 2020-09-04 | B98: 100 Fairgrounds Rd Attica, OH 44807 | C98: Attica Raceway Park | D98: 85.1 | E98: 01:40:00
A99: 2020-09-05 | B99: 100 Fairgrounds Rd Attica, OH 44807 | C99: Attica Raceway Park | D99: - | E99: -
A100: 2020-09-06 | B100: 1083 N Carr Rd Orrville, OH 44667 | C100: Wayne County Speedway | D100: 68.7 | E100: 01:25:00
B101: Home | D101: 107.2 | E101: 01:40:00 | F101: =SUM(D98:D101) -> 261 | G101: =SUM(E98:E101) -> 0.1979166667
B103: Home
A104: 2020-09-11 | B104: 302 6th St Port Royal, PA 17082 | C104: Port Royal Speedway | D104: 355 | E104: 05:39:00
A105: 2020-09-12 | B105: 302 6th St Port Royal, PA 17082 | C105: Port Royal Speedway | D105: - | E105: -
B106: Home | D106: 355.3 | E106: 05:42:00 | F106: =SUM(D104:D106) -> 710.3 | G106: =SUM(E104:E106) -> 0.4729166667
B108: Home
A109: 2020-09-18 | B109: 1 Speedway Dr Mechanicsburg, PA 17055 | C109: Williams Grove Speedway | D109: 361.3 | E109: 05:41:00
A110: 2020-09-19 | B110: 800 Racetrack Rd Abbottstown, PA 17301 | C110: Lincoln Speedway | D110: 22.5 | E110: 00:35:00
B111: Home | D111: 389.9 | E111: 06:09:00 | F111: =SUM(D109:D111) -> 773.7 | G111: =SUM(E109:E111) -> 0.5173611111
B113: Home
A114: 2020-09-26 | B114: 13929 OH-118 New Weston, OH 45348 | C114: Eldora Speedway | D114: 114.6 | E114: 01:57:00
B115: Home | D115: 115 | E115: 01:56:00 | F115: =SUM(D114:D115) -> 229.6 | G115: =SUM(E114:E115) -> 0.1618055556
D117: - | E117: -
